[Event "Vojvodina Open 2024-A 2024"]
[Site "Novi Sad"]
[Date "2024.06.24"]
[Round "1.12"]
[White "Antic, Dejan"]
[Black "Ashvath Mittal"]
[Result "1-0"]
[ECO "A06"]
[WhiteElo "2353"]
[BlackElo "1986"]
[Annotator "RC"]
[PlyCount "61"]
[EventDate "2024.06.03"]
[EventType "swiss"]
[EventCountry "SRB"]
[SourceTitle "playchess.com"]
[Source "ChessBase"]
[SourceQuality "1"]
[TimeControl "40/5400+30:900+30"]

1. Nf3 {[%emt 0:00:22]} d5 {[%emt 0:00:01]} 2. b3 {[%emt 0:00:15]} Nf6 {[%emt 0:00:20]} 3. Bb2 {[%emt 0:00:37]} c5 {[%emt 0:01:16]} 4. e3 {[%emt 0:01:01]} Nc6 {[%emt 0:00:22]} 5. Bb5 {[%emt 0:02:03]} e6 {[%emt 0:02:27]} 6. Ne5 {[%emt 0:02:00]} Qc7 {[%emt 0:06:11]} 7. O-O {[%emt 0:06:24]} Bd6 {[%emt 0:04:06]} 8. f4 {[%emt 0:08:59]} Bd7 {[%emt 0:12:00]} 9. Nxd7 {[%emt 0:04:00]} Qxd7 {[%emt 0:00:29]} 10. c4 {[%emt 0:05:21]} a6 {[%emt 0:03:20]} 11. Ba4 {[%emt 0:02:10]} dxc4 {[%emt 0:02:01]} 12. bxc4 {[%emt 0:00:48]} Qc7 {[%emt 0:04:05]} 13. Qf3 {[%emt 0:05:48]} Rc8 {[%emt 0:02:26]} 14. Qg3 {[%emt 0:06:35]} Kf8 {[%emt 0:03:53]} 15. Nc3 {[%emt 0:03:46]} h5 {[%emt 0:05:05]} 16. d3 {[%emt 0:05:41]} Rh6 {[%emt 0:10:21]} 17. Ne4 {[%emt 0:02:07]} Be7 {[%emt 0:02:12]} 18. Rab1 {[%emt 0:07:08]} h4 {[%emt 0:05:20]} 19. Qf3 {[%emt 0:03:34]} Nd7 {[%emt 0:04:04]} 20. Bc3 {[%emt 0:02:14]} f5 {[%emt 0:04:25]} 21. Ng5 {[%emt 0:01:27]} Nde5 {[%emt 0:02:58]} 22. Nxe6+ {[%emt 0:04:07]} Rxe6 {[%emt 0:00:04]} 23. fxe5 {[%emt 0:00:06]} g6 {[%emt 0:01:12]} 24. Qd5 {[%emt 0:01:56]} Kf7 {[%emt 0:00:37]} 25. Bxc6 {[%emt 0:02:30]} bxc6 {[%emt 0:01:01]} 26. Qf3 {[%emt 0:00:19]} Rxe5 {[%emt 0:00:26]} 27. Bxe5 {[%emt 0:01:50]} Qxe5 {[%emt 0:00:02]} 28. Qf4 {[%emt 0:01:33]} Qxf4 {[%emt 0:00:11]} 29. exf4 {[%emt 0:00:36]} Rd8 {[%emt 0:01:28]} 30. Rb7 {[%emt 0:00:40]} Kf8 {[%emt 0:00:09]} 31. Re1 {[%emt 0:00:44]} 1-0

[Event "Vojvodina Open 2024-A 2024"]
[Site "Novi Sad"]
[Date "2024.06.24"]
[Round "1.13"]
[White "Gur, Ali"]
[Black "Tippa, Aswath Srisai"]
[Result "0-1"]
[ECO "B25"]
[WhiteElo "1968"]
[BlackElo "1647"]
[Annotator "RC"]
[PlyCount "120"]
[EventDate "2024.06.03"]
[EventType "swiss"]
[EventCountry "SRB"]
[SourceTitle "playchess.com"]
[Source "ChessBase"]
[SourceQuality "1"]
[TimeControl "40/5400+30:900+30"]

1. e4 {[%emt 0:00:03]} c5 {[%emt 0:19:52]} 2. Nc3 {[%emt 0:00:08]} d6 {[%emt 0:00:52]} 3. g3 {[%emt 0:00:06]} g6 {[%emt 0:01:30]} 4. Bg2 {[%emt 0:00:07]} Bg7 {[%emt 0:00:05]} 5. d3 {[%emt 0:00:12]} Nc6 {[%emt 0:00:06]} 6. f4 {[%emt 0:00:06]} Rb8 {[%emt 0:00:19]} 7. Nf3 {[%emt 0:00:49]} b5 {[%emt 0:00:20]} 8. O-O {[%emt 0:00:09]} Nf6 {[%emt 0:02:59]} 9. h3 {[%emt 0:02:52]} O-O {[%emt 0:00:35]} 10. g4 {[%emt 0:01:03]} b4 {[%emt 0:00:11]} 11. Ne2 {[%emt 0:00:14]} Nd7 {[%emt 0:00:46]} 12. Qe1 {[%emt 0:05:17]} a5 {[%emt 0:01:37]} 13. Qh4 {[%emt 0:03:32]} e6 {[%emt 0:01:18]} 14. g5 {[%emt 0:07:36]} Nb6 {[%emt 0:04:32]} 15. Nh2 {[%emt 0:02:49]} Nd4 {[%emt 0:00:59]} 16. Nxd4 {[%emt 0:00:45]} Bxd4+ {[%emt 0:00:11]} 17. Kh1 {[%emt 0:00:05]} f5 {[%emt 0:00:17]} 18. gxf6 {[%emt 0:01:10]} Qxf6 {[%emt 0:00:17]} 19. Qg3 {[%emt 0:00:41]} Qe7 {[%emt 0:12:14]} 20. Ng4 {[%emt 0:03:58]} Bg7 {[%emt 0:03:08]} 21. Rb1 {[%emt 0:03:58]} Kh8 {[%emt 0:03:10]} 22. Be3 {[%emt 0:02:09]} Na4 {[%emt 0:05:45]} 23. e5 {[%emt 0:04:04]} Bb7 {[%emt 0:01:47]} 24. d4 {[%emt 0:05:01]} c4 {[%emt 0:04:58]} 25. exd6 {[%emt 0:06:39]} Qxd6 {[%emt 0:00:19]} 26. Ne5 {[%emt 0:00:26]} Nb6 {[%emt 0:02:38]} 27. Kh2 {[%emt 0:03:43]} Bxg2 {[%emt 0:02:02]} 28. Qxg2 {[%emt 0:07:06]} Qd5 {[%emt 0:01:09]} 29. Qxd5 {[%emt 0:06:34]} Nxd5 {[%emt 0:00:30]} 30. Rbe1 {[%emt 0:01:26]} Bxe5 {[%emt 0:00:41]} 31. dxe5 {[%emt 0:00:01]} Rbc8 {[%emt 0:10:05]} 32. Rf3 {[%emt 0:17:57]} a4 {[%emt 0:03:02]} 33. Kg3 {[%emt 0:01:12]} Kg7 {[%emt 0:01:33]} 34. Bd4 {[%emt 0:01:37]} Rfd8 {[%emt 0:01:08]} 35. c3 {[%emt 0:03:56]} Ne7 {[%emt 0:01:27]} 36. Kf2 {[%emt 0:03:02]} Nf5 {[%emt 0:00:42]} 37. Be3 {[%emt 0:04:53]} bxc3 {[%emt 0:01:11]} 38. bxc3 {[%emt 0:00:05]} Rb8 {[%emt 0:00:11]} 39. Re2 {[%emt 0:01:33]} Rb1 {[%emt 0:00:09]} 40. Bd4 {[%emt 0:00:00]} Rdb8 {[%emt 0:00:00]} 41. Bc5 {[%emt 0:03:49]} R8b2 {[%emt 0:02:02]} 42. a3 {[%emt 0:01:04]} Kf7 {[%emt 0:01:31]} 43. Rxb2 {[%emt 0:01:18]} Rxb2+ {[%emt 0:00:06]} 44. Kg1 {[%emt 0:03:29]} Ne7 {[%emt 0:03:37]} 45. f5 {[%emt 0:05:01]} Nd5 {[%emt 0:05:08]} 46. fxg6+ {[%emt 0:01:18]} Kxg6 {[%emt 0:00:06]} 47. Rg3+ {[%emt 0:02:00]} Kf5 {[%emt 0:00:03]} 48. Rg4 {[%emt 0:01:04]} Nf4 {[%emt 0:00:11]} 49. Rh4 {[%emt 0:00:27]} Ke4 {[%emt 0:06:06]} 50. Rxh7 {[%emt 0:01:03]} Ne2+ {[%emt 0:00:08]} 51. Kf1 {[%emt 0:00:07]} Nxc3 {[%emt 0:00:16]} 52. Bf2 {[%emt 0:02:06]} Nd5 {[%emt 0:00:24]} 53. Rh4+ {[%emt 0:00:22]} Kf3 {[%emt 0:00:08]} 54. Kg1 {[%emt 0:01:12]} c3 {[%emt 0:01:26]} 55. Rc4 {[%emt 0:01:00]} Rxf2 {[%emt 0:00:12]} 56. Rc8 {[%emt 0:00:29]} Rg2+ {[%emt 0:00:21]} 57. Kh1 {[%emt 0:00:09]} Re2 {[%emt 0:00:34]} 58. h4 {[%emt 0:00:36]} c2 {[%emt 0:00:12]} 59. Rf8+ {[%emt 0:00:36]} Kg3 {[%emt 0:00:13]} 60. Rf1 {[%emt 0:00:27]} Nf4 {[%emt 0:00:10]} 0-1

[Event "Vojvodina Open 2024-A 2024"]
[Site "Novi Sad"]
[Date "2024.06.24"]
[Round "1.14"]
[White "Manish Anto Cristiano F"]
[Black "Rindhiya V"]
[Result "1-0"]
[ECO "A26"]
[WhiteElo "2307"]
[BlackElo "1965"]
[Annotator "RC"]
[PlyCount "75"]
[EventDate "2024.06.03"]
[EventType "swiss"]
[EventCountry "SRB"]
[SourceTitle "playchess.com"]
[Source "ChessBase"]
[SourceQuality "1"]
[TimeControl "40/5400+30:900+30"]

1. c4 {[%emt 1:31:00]} e5 {[%emt 0:08:51]} 2. Nc3 {[%emt 0:00:00]} Nc6 {[%emt 0:00:20]} 3. g3 {[%emt 0:00:00]} g6 {[%emt 0:00:05]} 4. Bg2 {[%emt 0:00:00]} Bg7 {[%emt 0:00:04]} 5. a3 {[%emt 0:00:00]} a5 {[%emt 0:03:13]} 6. Nf3 {[%emt 0:00:00]} d6 {[%emt 0:01:01]} 7. O-O {[%emt 0:00:00]} Be6 {[%emt 0:03:55]} 8. d3 {[%emt 0:00:00]} h6 {[%emt 0:09:44]} 9. Rb1 {[%emt 0:00:00]} Nge7 {[%emt 0:07:55]} 10. b4 {[%emt 0:00:00]} axb4 {[%emt 0:00:51]} 11. axb4 {[%emt 0:00:00]} Qd7 {[%emt 0:05:04]} 12. Re1 {[%emt 0:00:00]} O-O {[%emt 0:04:33]} 13. b5 {[%emt 0:00:00]} Nd8 {[%emt 0:00:23]} 14. e4 {[%emt 0:00:00]} f5 {[%emt 0:03:50]} 15. Nd5 {[%emt 0:00:00]} Nc8 {[%emt 0:02:38]} 16. Nh4 {[%emt 0:00:00]} g5 {[%emt 0:08:00]} 17. Nxf5 {[%emt 0:00:00]} Bxf5 {[%emt 0:00:07]} 18. exf5 {[%emt 0:00:00]} Qxf5 {[%emt 0:00:24]} 19. Be3 {[%emt 0:00:00]} c6 {[%emt 0:09:55]} 20. bxc6 {[%emt 0:00:00]} bxc6 {[%emt 0:00:21]} 21. Nb6 {[%emt 0:00:00]} Nxb6 {[%emt 0:03:50]} 22. Rxb6 {[%emt 0:00:00]} Rc8 {[%emt 0:09:33]} 23. Be4 {[%emt 0:00:00]} Qd7 {[%emt 0:02:50]} 24. Qa4 {[%emt 0:00:00]} Rc7 {[%emt 0:04:14]} 25. Ra6 {[%emt 0:00:00]} c5 {[%emt 0:05:32]} 26. Qd1 {[%emt 0:00:00]} Ne6 {[%emt 0:03:15]} 27. Qh5 {[%emt 0:00:00]} Rf6 {[%emt 0:00:46]} 28. Rb1 {[%emt 0:00:00]} Nd4 {[%emt 0:02:19]} 29. Rb8+ {[%emt 0:00:00]} Bf8 {[%emt 0:00:47]} 30. h4 {[%emt 0:00:00]} Qf7 {[%emt 0:00:35]} 31. Bd5 {[%emt 0:00:00]} Ne6 {[%emt 0:00:08]} 32. Qxf7+ {[%emt 0:00:00]} Kxf7 {[%emt 0:00:13]} 33. hxg5 {[%emt 0:00:00]} hxg5 {[%emt 0:00:01]} 34. Bxg5 {[%emt 0:00:00]} Rg6 {[%emt 0:00:23]} 35. Bd2 {[%emt 0:00:00]} Kg7 {[%emt 0:01:02]} 36. Raa8 {[%emt 0:00:00]} Rf7 {[%emt 0:01:13]} 37. Re8 {[%emt 0:00:00]} Be7 {[%emt 0:00:05]} 38. Rg8+ {[%emt 0:00:00]} 1-0

[Event "Vojvodina Open 2024-A 2024"]
[Site "Novi Sad"]
[Date "2024.06.24"]
[Round "1.15"]
[White "Sahbudak, Baris Cinar"]
[Black "Ljepic, Andrej"]
[Result "1/2-1/2"]
[ECO "C01"]
[WhiteElo "1941"]
[BlackElo "2267"]
[Annotator "RC"]
[PlyCount "101"]
[EventDate "2024.06.03"]
[EventType "swiss"]
[EventCountry "SRB"]
[SourceTitle "playchess.com"]
[Source "ChessBase"]
[SourceQuality "1"]
[TimeControl "40/5400+30:900+30"]

1. e4 {[%emt 0:00:24]} e6 {[%emt 0:00:06]} 2. d4 {[%emt 0:01:02]} d5 {[%emt 0:00:05]} 3. Bd3 {[%emt 0:00:59]} dxe4 {[%emt 0:01:26]} 4. Bxe4 {[%emt 0:00:16]} Nf6 {[%emt 0:00:05]} 5. Bf3 {[%emt 0:00:15]} Be7 {[%emt 0:01:09]} 6. Ne2 {[%emt 0:00:42]} O-O {[%emt 0:00:20]} 7. O-O {[%emt 0:00:27]} Nbd7 {[%emt 0:01:47]} 8. Bf4 {[%emt 0:04:19]} c5 {[%emt 0:00:44]} 9. Nbc3 {[%emt 0:05:46]} a6 {[%emt 0:02:31]} 10. Qd2 {[%emt 0:04:53]} cxd4 {[%emt 0:05:31]} 11. Qxd4 {[%emt 0:01:51]} Bc5 {[%emt 0:00:33]} 12. Qd2 {[%emt 0:03:00]} e5 {[%emt 0:03:29]} 13. Be3 {[%emt 0:09:56]} Qc7 {[%emt 0:03:35]} 14. Ng3 {[%emt 0:03:54]} Bxe3 {[%emt 0:05:07]} 15. Qxe3 {[%emt 0:01:31]} Nb6 {[%emt 0:00:07]} 16. Rfe1 {[%emt 0:07:21]} Nc4 {[%emt 0:03:50]} 17. Qe2 {[%emt 0:02:13]} Nxb2 {[%emt 0:01:14]} 18. Qxe5 {[%emt 0:01:21]} Qxe5 {[%emt 0:04:59]} 19. Rxe5 {[%emt 0:00:09]} Rb8 {[%emt 0:02:04]} 20. Rc5 {[%emt 0:15:44]} b6 {[%emt 0:03:23]} 21. Rc7 {[%emt 0:08:56]} Be6 {[%emt 0:02:49]} 22. Bb7 {[%emt 0:02:34]} a5 {[%emt 0:10:36]} 23. Nge4 {[%emt 0:05:06]} Nxe4 {[%emt 0:03:30]} 24. Nxe4 {[%emt 0:00:43]} Rfd8 {[%emt 0:01:25]} 25. h3 {[%emt 0:05:07]} h6 {[%emt 0:04:11]} 26. Rb1 {[%emt 0:03:09]} Nc4 {[%emt 0:08:05]} 27. Ba6 {[%emt 0:01:41]} Na3 {[%emt 0:03:40]} 28. Rb2 {[%emt 0:02:16]} b5 {[%emt 0:05:01]} 29. Rc5 {[%emt 0:02:41]} Rd5 {[%emt 0:03:57]} 30. Rc3 {[%emt 0:01:15]} Rd1+ {[%emt 0:02:28]} 31. Kh2 {[%emt 0:00:02]} Rb1 {[%emt 0:01:22]} 32. Rxb1 {[%emt 0:00:43]} Nxb1 {[%emt 0:00:02]} 33. Rc5 {[%emt 0:01:02]} Na3 {[%emt 0:01:52]} 34. Rc3 {[%emt 0:01:32]} b4 {[%emt 0:01:34]} 35. Rc5 {[%emt 0:00:33]} Bxa2 {[%emt 0:03:33]} 36. Rxa5 {[%emt 0:00:59]} Bb1 {[%emt 0:00:59]} 37. Nc3 {[%emt 0:03:03]} Bxc2 {[%emt 0:00:59]} 38. Nd5 {[%emt 0:00:33]} Nb1 {[%emt 0:01:33]} 39. Ne7+ {[%emt 0:00:52]} Kh7 {[%emt 0:04:00]} 40. Nc6 {[%emt 0:00:00]} Rb6 {[%emt 0:00:00]} 41. Nd4 {[%emt 0:05:19]} Bg6 {[%emt 0:02:22]} 42. f4 {[%emt 0:01:14]} Be4 {[%emt 0:01:43]} 43. Nb3 {[%emt 0:03:04]} Nc3 {[%emt 0:02:53]} 44. Bc4 {[%emt 0:01:52]} f5 {[%emt 0:00:34]} 45. Nd4 {[%emt 0:01:33]} Nd1 {[%emt 0:06:45]} 46. Ne6 {[%emt 0:04:28]} b3 {[%emt 0:02:08]} 47. Rb5 {[%emt 0:01:50]} Rxb5 {[%emt 0:07:06]} 48. Nf8+ {[%emt 0:00:13]} Kh8 {[%emt 0:00:01]} 49. Ng6+ {[%emt 0:00:05]} Kh7 {[%emt 0:00:03]} 50. Nf8+ {[%emt 0:00:07]} Kh8 {[%emt 0:00:04]} 51. Ng6+ {[%emt 0:00:03]} 1/2-1/2

[Event "Vojvodina Open 2024-A 2024"]
[Site "Novi Sad"]
[Date "2024.06.24"]
[Round "1.16"]
[White "Drazic, Sinisa"]
[Black "Arvind Ramnath Iyer"]
[Result "1/2-1/2"]
[ECO "D00"]
[WhiteElo "2263"]
[BlackElo "1872"]
[Annotator "RC"]
[PlyCount "49"]
[EventDate "2024.06.03"]
[EventType "swiss"]
[EventCountry "SRB"]
[SourceTitle "playchess.com"]
[Source "ChessBase"]
[SourceQuality "1"]
[TimeControl "40/5400+30:900+30"]

1. d4 {[%emt 0:01:48]} Nf6 {[%emt 0:00:26]} 2. Bg5 {[%emt 0:00:02]} g6 {[%emt 0:00:29]} 3. Bxf6 {[%emt 0:00:02]} exf6 {[%emt 0:00:05]} 4. e3 {[%emt 0:00:02]} d5 {[%emt 0:00:35]} 5. c4 {[%emt 0:00:02]} c6 {[%emt 0:03:00]} 6. Nc3 {[%emt 0:00:02]} Bg7 {[%emt 0:00:09]} 7. cxd5 {[%emt 0:00:03]} cxd5 {[%emt 0:00:21]} 8. Qb3 {[%emt 0:00:06]} O-O {[%emt 0:01:27]} 9. g3 {[%emt 0:05:47]} Nc6 {[%emt 0:06:39]} 10. Bg2 {[%emt 0:04:07]} Be6 {[%emt 0:00:37]} 11. Nge2 {[%emt 0:17:52]} Na5 {[%emt 0:14:27]} 12. Qd1 {[%emt 0:07:01]} Bh6 {[%emt 0:00:46]} 13. O-O {[%emt 0:00:23]} Qd7 {[%emt 0:01:12]} 14. b3 {[%emt 0:02:27]} f5 {[%emt 0:08:00]} 15. Nf4 {[%emt 0:04:01]} Bxf4 {[%emt 0:00:29]} 16. exf4 {[%emt 0:00:26]} Nc6 {[%emt 0:00:44]} 17. Re1 {[%emt 0:00:11]} Rac8 {[%emt 0:01:23]} 18. Rc1 {[%emt 0:00:57]} Rfd8 {[%emt 0:04:45]} 19. Na4 {[%emt 0:02:40]} b6 {[%emt 0:00:19]} 20. Qd2 {[%emt 0:00:05]} Ne7 {[%emt 0:00:41]} 21. Nc3 {[%emt 0:00:26]} Rc7 {[%emt 0:02:16]} 22. Bf1 {[%emt 0:00:03]} Nc8 {[%emt 0:05:33]} 23. Nb5 {[%emt 0:01:32]} Rb7 {[%emt 0:00:39]} 24. a4 {[%emt 0:12:10]} Nd6 {[%emt 0:04:41]} 25. Rc2 {[%emt 0:03:44]} 1/2-1/2